bitfinex-derivatives/quotes_ETHF0:USTF0_20250102
["timestamp","ask_amount","ask_price","bid_price","bid_amount"]
[1735829551540,0.7173,3488.6,3487.7,3.2078]
[1735829551734,4.5004,3488.8,3488.3,0.28694]
[1735829552042,0.28691,3488.7,3488.5,0.28692]
[1735829552244,0.28691,3488.7,3488.1,3.2078]
[1735829552439,4.5004,3488.8,3488.7,0.28691]
[1735829552642,0.28692,3488.5,3488.4,0.28693]
[1735829552941,4.5004,3488.8,3488.1,3.2078]
[1735829553144,0.28691,3488.7,3488.5,0.28692]
[1735829553337,3.2078,3488.8,3488.1,8.2078]
[1735829553538,0.28691,3488.7,3488.6,0.28691]
[1735829553841,0.28691,3488.7,3488.5,3.2078]
[1735829554043,0.28692,3488.6,3488.5,3.49472]
[1735829554938,5.95083741,3489.4,3488.5,3.2078]
[1735829555138,0.28691,3488.7,3488.5,3.2078]
[1735829555338,0.28691,3488.7,3488.6,0.28692]
[1735829555538,0.28691,3488.7,3488.5,3.2078]
[1735829555539,0.28692,3488.6,3488.5,3.2078]
[1735829555844,0.71717,3489.2,3488.5,3.49472]
[1735829556045,0.28692,3488.6,3488.5,3.2078]
[1735829556533,0.71717,3489.2,3488.6,0.28691]
[1735829556738,2.4353,3489.7,3489.0,3.49468]
[1735829557040,5.58848843,3490.0,3489.6,3.2078]
[1735829557238,5.58848843,3490.0,3489.9,0.28681]
[1735829558345,1.2206,3490.7,3489.6,3.2078]
[1735829558543,0.2868,3490.0,3489.9,0.2868]
[1735829558739,0.28683,3489.7,3489.6,3.2078]
[1735829559040,3.2078,3490.0,3489.2,3.2078]
[1735829559249,0.28683,3489.7,3489.2,3.2078]
[1735829559436,0.71698,3490.2,3489.2,3.2078]
[1735829559633,0.28683,3489.7,3489.2,3.2078]
[1735829559839,3.2078,3490.2,3489.2,3.2078]
[1735829560039,0.71695,3490.3,3489.2,3.2078]
[1735829560241,0.28684,3489.6,3489.3,0.28686]
[1735829560440,0.28684,3489.6,3489.4,0.28684]
[1735829560641,0.28682,3489.8,3489.6,0.28683]
[1735829560850,0.71695,3490.3,3489.2,3.2078]
[1735829561044,0.28685,3489.4,3489.3,0.28685]
[1735829561346,2.74303741,3490.4,3489.3,0.71715]
[1735829561653,2.74303741,3490.4,3489.3,3.2078]
[1735829561846,0.28682,3489.8,3489.7,0.28682]
[1735829562040,0.28682,3489.8,3489.3,3.2078]
[1735829562237,3.2078,3490.5,3489.3,3.2078]
[1735829562438,0.2868,3490.0,3489.9,0.28681]
[1735829562642,0.28683,3489.7,3489.5,0.28684]
[1735829562852,3.2078,3490.3,3489.3,3.2078]
[1735829563146,0.71699,3490.1,3489.3,3.2078]
[1735829563352,0.28685,3489.4,3489.3,3.2078]
[1735829564049,3.92487,3489.8,3488.5,3.2078]
[1735829564248,0.28691,3488.7,3488.6,0.28691]
[1735829564437,3.2078,3489.7,3488.5,3.2078]
[1735829564743,0.28684,3489.6,3489.5,0.28683]
[1735829564942,1.2865,3490.0,3489.3,3.2078]
[1735829565248,0.28685,3489.4,3489.3,3.2078]
[1735829565743,1.2865,3490.0,3489.3,3.2078]
[1735829566048,1.2865,3490.0,3489.4,0.28685]
[1735829566049,0.28685,3489.5,3489.4,0.28685]
[1735829566236,1.2865,3490.0,3489.3,3.2078]
[1735829566437,1.2865,3490.0,3489.7,0.28682]
[1735829566642,0.28682,3489.8,3489.6,0.28683]
[1735829566843,1.2865,3490.0,3489.9,0.28681]
[1735829567037,5.18044,3490.9,3489.7,3.2078]
[1735829567038,0.28676,3490.6,3489.7,3.2078]
[1735829567244,7.20663741,3490.9,3490.7,0.28674]
[1735829567245,3.49453,3490.9,3490.7,0.28674]
[1735829567447,0.28674,3490.8,3490.7,0.28674]
[1735829567644,3.49453,3490.9,3490.2,0.71695]
[1735829567850,0.28674,3490.8,3490.6,0.28675]
[1735829568144,0.28672,3491.0,3490.8,0.28673]
[1735829568444,0.28674,3490.8,3490.6,0.28675]
[1735829568646,0.71674,3491.3,3490.1,3.2078]
[1735829568844,0.71678,3491.1,3490.5,0.28675]
[1735829569046,0.28678,3490.3,3490.1,3.2078]
[1735829569253,3.2078,3490.7,3489.7,3.2078]
[1735829569448,2.74303741,3490.4,3489.7,3.2078]
[1735829569647,3.2078,3490.2,3489.7,3.2078]
[1735829569853,0.2868,3490.0,3489.8,0.28681]
[1735829570044,3.2078,3490.2,3489.7,3.2078]
[1735829570543,0.28682,3489.8,3489.7,3.2078]
[1735829571943,0.28685,3489.4,3489.3,3.2078]
[1735829573048,0.28688,3489.1,3488.9,0.28689]
[1735829573243,0.71705,3489.8,3488.6,3.2078]
[1735829573547,4.02203741,3490.4,3489.4,3.2078]
[1735829573748,3.2078,3490.2,3489.4,3.2078]
[1735829574049,0.28681,3489.9,3489.7,0.28682]
[1735829574246,5.725,3490.3,3489.0,3.2078]
[1735829574447,0.71705,3489.8,3489.0,3.2078]
[1735829574653,0.28687,3489.1,3489.0,3.49468]
[1735829574840,0.28686,3489.3,3489.2,0.28687]
[1735829575155,0.28689,3489.0,3488.4,0.28693]
[1735829575344,0.71713,3489.4,3488.3,3.2078]
[1735829575545,3.2078,3489.5,3488.3,3.92516]
[1735829575741,0.28689,3489.0,3488.9,0.28689]
[1735829576261,0.71713,3489.4,3488.3,3.2078]
[1735829576447,0.28693,3488.5,3488.4,0.28693]
[1735829576941,0.28693,3488.5,3488.3,3.2078]
[1735829576942,0.28693,3488.4,3488.3,3.2078]
[1735829577343,3.2078,3489.1,3488.7,0.28691]
[1735829577550,0.28692,3488.6,3488.3,3.2078]
[1735829577747,3.2078,3489.1,3488.3,3.2078]
[1735829578152,0.28693,3488.5,3488.4,0.28693]
[1735829578354,3.2078,3489.1,3488.3,3.2078]
[1735829578559,2.4586,3489.3,3488.3,3.2078]
[1735829578750,2.4586,3489.3,3488.7,3.2078]
[1735829578952,2.74303741,3489.9,3489.1,3.2078]
[1735829579147,6.86068843,3490.2,3489.5,3.2078]
[1735829579346,0.28683,3489.7,3489.6,0.28683]
[1735829580153,1.2722,3490.2,3489.5,3.2078]
[1735829580350,5.58848843,3491.0,3489.9,3.2078]
[1735829580556,0.2868,3490.0,3489.9,3.49461]
[1735829580956,0.2868,3490.0,3489.9,3.2078]
[1735829581256,11.26258843,3491.3,3489.9,8.2078]
[1735829581553,8.79628843,3491.3,3491.2,0.2867]
[1735829581755,8.79628843,3491.3,3491.2,3.4945]
[1735829581756,5.58848843,3491.3,3491.2,3.4945]
[1735829581952,0.28668,3491.5,3491.3,0.28669]
[1735829582259,5.58848843,3491.8,3491.4,0.28668]
[1735829582453,5.58848843,3491.8,3491.7,0.28666]
[1735829582653,5.58848843,3491.8,3491.7,0.28498061]
[1735829582958,5.87514843,3491.8,3491.6,0.28666]
[1735829583157,5.58848843,3491.8,3491.2,3.2078]
[1735829583460,5.58848843,3491.8,3491.7,0.28666]
[1735829583756,5.58848843,3491.8,3491.2,3.2078]
[1735829583757,0.28664,3492.0,3491.4,0.28668]
[1735829584057,0.28667,3491.6,3491.3,0.28669]
[1735829584261,0.28667,3491.6,3491.2,3.2078]
[1735829584559,3.2078,3491.9,3491.2,3.2078]
[1735829584855,3.2078,3491.5,3490.7,3.2078]
[1735829585059,0.28673,3490.8,3490.7,3.2078]
[1735829585255,3.2078,3491.0,3490.0,3.2078]
[1735829585760,0.28677,3490.5,3490.3,0.28677]
[1735829585961,0.28677,3490.5,3490.2,0.28678]
[1735829586153,3.2078,3491.0,3490.0,3.2078]
[1735829586154,2.74303741,3490.9,3490.0,3.2078]
[1735829586354,0.28679,3490.1,3490.0,3.2078]
[1735829586554,0.28681,3490.0,3489.6,3.2078]
[1735829586757,5.95083741,3490.4,3489.6,3.2078]
[1735829587165,3.2078,3490.4,3489.6,3.2078]
[1735829587371,1.2444,3491.1,3490.0,3.2078]
[1735829587667,1.2444,3491.1,3490.4,3.2078]
[1735829587858,0.28671,3491.2,3490.9,0.28673]
[1735829588052,1.292,3491.4,3490.4,3.2078]
[1735829588249,1.292,3491.4,3490.8,3.2078]
[1735829588453,1.2882,3491.7,3490.8,3.2078]
[1735829589349,0.28669,3491.4,3490.8,3.2078]
[1735829589655,0.2867,3491.3,3491.0,0.28672]
[1735829589855,1.2882,3491.7,3491.4,0.28668]
[1735829590071,4.457,3491.9,3491.6,0.28666]
[1735829590072,3.49445,3491.9,3491.6,0.28666]
[1735829590363,3.2078,3491.9,3491.6,0.28666]
[1735829590553,3.49445,3491.9,3491.6,0.28666]
[1735829590754,3.2078,3491.9,3491.4,3.2078]
[1735829590963,0.28666,3491.7,3491.4,3.49448]
[1735829591165,3.2078,3491.9,3491.4,3.2078]
[1735829591360,3.49445,3491.9,3491.6,0.28666]
[1735829591560,0.28674,3490.8,3490.6,3.49455]
[1735829591762,0.28674,3490.8,3490.6,3.2078]
[1735829592462,0.28675,3490.7,3490.5,0.28676]
[1735829592663,0.28675,3490.6,3490.4,0.28677]
[1735829592964,3.2078,3490.8,3490.0,3.2078]
[1735829593159,0.28679,3490.1,3490.0,3.2078]
[1735829593555,3.2078,3490.3,3489.5,4.411]
[1735829593759,0.28678,3490.2,3489.9,0.2868]
[1735829593969,3.2078,3490.3,3489.5,4.411]
[1735829594166,0.28681,3490.0,3489.8,0.28681]
[1735829594367,7.37083741,3490.9,3489.5,4.411]
[1735829594666,0.28677,3490.4,3490.2,0.28678]
[1735829594959,0.28683,3489.6,3489.5,3.2078]
[1735829595660,5.95083741,3489.9,3488.8,3.2078]
[1735829595964,3.2078,3489.3,3488.3,7.56851656]
[1735829596159,0.28692,3488.6,3488.4,0.28693]
[1735829596463,0.28692,3488.6,3488.5,0.28692]
[1735829596765,0.28692,3488.6,3488.4,0.28693]
[1735829597067,0.28692,3488.6,3488.5,0.28692]
[1735829597368,0.28687,3489.2,3489.0,0.28688]
[1735829597568,0.28687,3489.1,3489.0,0.28688]
[1735829597769,0.28688,3489.0,3488.8,0.28689]
[1735829597963,0.28687,3489.2,3488.7,3.2078]
[1735829598167,0.28685,3489.4,3488.7,3.2078]
[1735829598362,0.28682,3489.8,3489.6,0.28683]
[1735829598570,6.70618612,3490.6,3489.7,3.2078]
[1735829598872,5.58848843,3490.5,3490.4,0.28677]
[1735829599067,1.90438844,3490.5,3490.4,0.28677]
[1735829599258,6.70618612,3490.9,3490.4,0.28677]
[1735829599259,6.70618612,3490.9,3490.8,0.28673]
[1735829599461,6.70618612,3490.9,3490.8,3.49453]
[1735829599769,0.28669,3491.4,3490.8,3.2078]
[1735829599969,0.28669,3491.3,3491.2,0.2867]
[1735829600170,0.28669,3491.3,3490.8,3.2078]
[1735829600371,4.04293741,3491.9,3490.8,3.2078]
[1735829600668,3.2078,3491.7,3491.1,0.28671]
[1735829600869,3.2078,3491.7,3490.8,3.2078]
[1735829601065,0.28668,3491.5,3491.3,0.28669]
[1735829601273,3.2078,3491.7,3491.2,3.2078]
[1735829601274,0.28667,3491.7,3491.2,3.2078]
[1735829601469,0.28663,3492.1,3491.8,0.28665]
[1735829601667,3.2078,3492.2,3491.6,3.2078]
[1735829601866,1.2975,3492.7,3490.4,4.17685741]
[1735829601867,0.2866,3492.5,3492.3,0.28661]
[1735829602062,0.28659,3492.6,3492.4,0.2866]
[1735829602262,1.58408,3492.7,3492.5,0.28659]
[1735829602467,1.2975,3492.7,3492.0,3.2078]
[1735829602672,1.58408,3492.7,3492.5,0.28659]
[1735829602873,0.28659,3492.6,3492.0,3.2078]
[1735829603065,1.2975,3492.7,3492.0,3.2078]
[1735829603265,0.28663,3492.1,3492.0,3.2078]
[1735829603570,0.71647,3492.6,3491.9,3.2078]
[1735829603571,3.2078,3492.6,3491.9,3.2078]
[1735829603776,0.2866,3492.5,3491.9,3.2078]
[1735829603976,0.2866,3492.5,3492.3,0.28661]
[1735829604168,1.2975,3492.7,3491.9,3.2078]
[1735829604368,1.2975,3492.7,3492.3,3.2078]
[1735829604771,0.2866,3492.5,3492.3,3.49441]
[1735829604964,1.2975,3492.7,3492.1,0.28662]
[1735829605275,1.2975,3492.7,3491.7,3.2078]
[1735829605474,3.2078,3492.6,3491.7,3.2078]
[1735829605667,3.2078,3492.6,3491.9,0.28664]
[1735829605869,3.2078,3492.2,3491.3,3.2078]
[1735829606071,4.5053,3492.7,3491.3,3.2078]
[1735829606272,0.28661,3492.4,3492.2,0.28662]
[1735829606574,0.28662,3492.3,3491.7,3.2078]
[1735829606774,0.28662,3492.3,3492.1,0.28663]
[1735829607476,0.2866,3492.5,3492.2,0.28661]
[1735829607678,0.2866,3492.5,3492.3,0.28661]
[1735829607874,4.5053,3492.7,3491.7,3.2078]
[1735829608076,3.2078,3492.2,3491.0,1.42]
[1735829608279,3.2078,3491.9,3491.0,1.42]
[1735829608573,6.2975,3492.7,3492.2,0.28661]
[1735829608574,3.4944,3492.5,3492.2,0.28661]
[1735829608771,3.2078,3492.5,3491.7,3.2078]
[1735829608974,3.2078,3492.5,3491.3,3.2078]
[1735829609166,3.2078,3492.5,3491.6,3.2078]
[1735829609371,3.2078,3492.5,3491.7,0.71666]
[1735829609579,0.28662,3492.3,3492.0,0.28663]
[1735829609783,0.28662,3492.3,3491.7,0.28666]
[1735829609974,0.28663,3492.2,3491.6,3.2078]
[1735829610180,3.2078,3492.6,3492.1,0.28662]
[1735829610474,3.2078,3492.6,3491.6,3.2078]
[1735829610775,3.2078,3492.2,3491.6,3.2078]
[1735829611179,0.28665,3491.8,3491.6,3.49446]
[1735829611374,3.2078,3492.2,3491.6,3.2078]
[1735829611877,0.28665,3491.9,3491.7,0.28666]
[1735829612676,0.28662,3492.3,3492.0,0.28663]
[1735829612875,3.49439,3492.6,3492.3,0.28661]
[1735829613078,3.2078,3492.6,3492.5,0.2866]
[1735829613874,1.2975,3492.7,3492.6,0.28659]
[1735829614285,0.28659,3492.6,3492.4,0.2866]
[1735829614492,0.28659,3492.6,3492.3,0.28661]
[1735829614794,1.2975,3492.7,3492.0,3.2078]
[1735829615492,0.28661,3492.4,3492.2,0.28662]
[1735829615791,1.2975,3492.7,3492.3,0.28661]
[1735829615988,1.2975,3492.7,3492.0,3.2078]
[1735829615989,1.2975,3492.7,3492.0,3.92439]
[1735829616289,1.2885,3493.0,3492.7,0.28658]
[1735829616487,0.28656,3492.9,3492.7,0.28658]
[1735829616690,1.2885,3493.0,3492.9,0.28656]
[1735829616887,0.001,3493.0,3492.9,0.28656]
[1735829617081,0.001,3493.0,3492.8,3.2078]
[1735829617491,0.001,3493.0,3492.9,0.28656]
[1735829617884,0.001,3493.0,3492.6,0.28658]
[1735829618088,0.001,3493.0,3492.9,0.28656]
[1735829618290,0.001,3493.0,3492.2,3.2078]
[1735829618483,0.28656,3492.9,3492.6,0.28658]
[1735829618687,0.28657,3492.9,3492.7,0.28657]
[1735829618999,0.28756,3493.0,3492.8,0.28657]
[1735829619196,0.001,3493.0,3492.8,0.28657]
[1735829619494,0.001,3493.0,3492.2,3.2078]
[1735829619789,0.001,3493.0,3492.9,0.28656]
[1735829619991,0.28657,3492.8,3492.7,0.28658]
[1735829620292,0.001,3493.0,3492.2,3.2078]
[1735829620591,0.28657,3492.8,3492.6,0.28658]
[1735829620792,0.28657,3492.8,3492.2,3.2078]
[1735829620793,0.001,3493.0,3492.9,0.28656]
[1735829623694,0.001,3493.0,3492.7,1.2776]
[1735829623695,0.28657,3492.8,3492.7,0.28658]
[1735829623886,3.2078,3492.8,3491.4,3.2078]
[1735829624091,0.28665,3491.9,3491.8,0.28664]
[1735829624291,0.28665,3491.9,3491.4,3.2078]
[1735829624292,3.2078,3492.3,3492.2,0.28662]
[1735829624494,1.2595,3492.7,3492.6,0.28659]
[1735829624699,1.54608,3492.7,3492.6,0.28659]
[1735829624898,1.2595,3492.7,3492.1,0.71656]
[1735829625096,1.2595,3492.7,3491.9,1.2874]
[1735829625293,1.2595,3492.7,3492.6,0.28659]
[1735829625492,0.001,3493.0,3492.3,0.71654]
[1735829625694,0.001,3493.0,3492.9,0.28656]
[1735829633099,0.28646,3494.2,3493.9,0.28648]
[1735829633293,0.28646,3494.2,3493.0,1.43279]
[1735829633294,0.28645,3494.3,3494.2,0.28645]
[1735829633498,0.28645,3494.3,3493.5,0.71628]
[1735829633499,1.1999,3494.8,3493.4,3.2078]
[1735829633700,0.2865,3493.7,3493.6,0.2865]
[1735829633898,0.71613,3494.3,3493.7,0.28649]
[1735829633899,0.28649,3493.8,3493.7,0.28649]
[1735829634101,0.2865,3493.7,3493.6,0.2865]
[1735829634398,0.28652,3493.5,3493.4,0.28651]
[1735829634604,0.28652,3493.5,3493.4,0.28652]
[1735829634901,0.28654,3493.3,3493.2,0.28653]
[1735829635101,0.71627,3493.6,3492.9,3.2078]
[1735829635303,1.1999,3493.9,3492.9,3.2078]
[1735829635505,0.28653,3493.4,3493.3,0.28653]
[1735829635696,0.28654,3493.3,3493.2,0.28653]
[1735829636403,0.28654,3493.2,3493.1,0.28654]
[1735829637304,3.2078,3493.2,3492.3,3.2078]
[1735829637500,0.28656,3493.0,3492.9,0.28656]
[1735829637702,1.1971,3493.1,3492.3,3.2078]
[1735829637900,3.2078,3492.8,3492.3,3.2078]
[1735829638099,3.2078,3492.8,3492.1,1.1934]
[1735829638604,3.2078,3492.8,3491.8,0.71664]
[1735829638901,3.2078,3492.8,3491.7,0.71666]
[1735829638902,0.28662,3492.2,3491.7,0.71666]
[1735829639203,0.28662,3492.2,3492.1,0.28663]
[1735829639408,3.2078,3492.2,3491.1,3.92458]
[1735829639600,1.2176,3492.1,3492.0,0.28663]
[1735829639796,2.13442,3492.9,3491.5,3.2078]
[1735829639797,1.418,3492.9,3491.5,3.2078]
[1735829639994,2.6356,3492.9,3491.5,3.2078]
[1735829640199,3.49438,3492.7,3492.6,0.28658]
[1735829640495,3.2078,3492.7,3492.6,0.28659]
[1735829640897,1.2176,3492.9,3492.8,0.28657]
[1735829641301,4.16103741,3493.5,3492.5,0.71649]
[1735829641302,3.2078,3493.6,3492.7,3.2078]
[1735829641498,2.5161,3493.7,3493.6,0.2865]
[1735829642001,1.2223,3493.7,3493.6,0.2865]
[1735829642198,1.2223,3494.4,3494.3,0.28645]
[1735829643301,3.2078,3494.5,3493.8,0.71622]
[1735829643302,3.2078,3494.5,3494.4,0.28644]
[1735829643507,0.28644,3494.4,3494.3,0.28645]
[1735829643716,3.2078,3494.5,3494.4,0.28644]
[1735829643908,3.2078,3494.5,3493.9,0.71621]
[1735829643909,3.2078,3494.5,3493.7,0.71625]
[1735829644107,3.2078,3494.5,3493.6,3.2078]
[1735829644406,0.28644,3494.4,3493.9,0.28648]
[1735829644708,0.28649,3493.9,3493.7,0.28649]
[1735829644900,1.3012,3493.8,3493.7,0.28649]
[1735829645706,3.2088,3494.0,3493.7,0.28649]
[1735829645907,3.2088,3494.0,3493.9,0.28648]
[1735829647208,3.2088,3494.0,3493.5,0.28651]
[1735829647403,1.2913,3493.9,3493.2,3.2078]
[1735829647606,1.2913,3493.9,3493.6,0.2865]
[1735829647607,0.2865,3493.7,3493.6,0.2865]
[1735829647807,0.28649,3493.8,3493.6,0.2865]
[1735829648012,1.2913,3493.9,3493.8,0.28649]
[1735829648601,3.2088,3494.0,3493.2,3.2078]
[1735829648805,3.2088,3494.0,3493.9,0.28648]
[1735829649413,3.2088,3494.0,3493.2,3.2078]
[1735829649610,3.2088,3494.0,3493.3,0.71633]
[1735829649815,3.2088,3494.0,3493.9,0.28648]
[1735829650309,3.49528,3494.0,3493.8,0.28648]
[1735829650713,3.2088,3494.0,3493.2,3.2078]
[1735829651208,8.2088,3494.0,3493.2,3.2078]
[1735829651415,0.28652,3493.5,3493.3,0.28652]
[1735829651619,3.2078,3493.5,3492.6,4.4536]
[1735829651910,3.2078,3493.0,3492.6,1.2458]
[1735829652219,3.2078,3493.0,3492.9,0.28656]
[1735829652816,2.4754,3493.4,3493.3,0.28653]
[1735829653212,4.423,3493.7,3493.6,0.2865]
[1735829653213,3.2078,3493.7,3493.6,0.2865]
[1735829653409,3.2078,3493.7,3493.1,3.2078]
[1735829653712,3.2078,3493.7,3492.8,0.71643]
[1735829653919,0.28653,3493.3,3493.2,0.28653]
[1735829654113,3.49433,3493.3,3493.2,0.28653]
[1735829654417,3.2078,3493.3,3493.2,0.28654]
[1735829654923,3.2078,3493.3,3492.9,0.71641]
[1735829654924,3.2078,3493.3,3492.7,0.71645]
[1735829655122,0.28654,3493.2,3493.1,0.28654]
[1735829655426,3.2078,3493.3,3493.2,0.28654]
[1735829655721,3.2078,3493.3,3492.7,0.71644]
[1735829655917,3.49433,3493.3,3493.2,0.28654]
[1735829656220,3.2078,3493.3,3493.2,0.28654]
[1735829656413,0.28651,3493.6,3493.5,0.28651]
[1735829656920,5.61932466,3493.8,3492.6,3.2078]
[1735829657226,3.2078,3493.3,3492.2,5.61932466]
[1735829657523,3.2078,3493.3,3493.0,0.28655]
[1735829657817,3.2078,3493.3,3493.2,0.28654]
[1735829658121,3.2078,3493.7,3493.6,0.2865]
[1735829658314,3.2078,3493.7,3492.9,0.71641]
[1735829658315,0.28651,3493.6,3493.5,0.28651]
[1735829658513,0.28651,3493.6,3492.7,0.71645]
[1735829658514,0.28655,3493.1,3492.7,0.28658]
[1735829658721,3.2078,3493.7,3492.6,3.2078]
[1735829658909,0.001,3494.0,3493.5,3.2078]
[1735829659111,0.001,3494.0,3493.9,3.49428]
[1735829659516,0.001,3494.0,3493.9,4.74958]
[1735829659816,1e-05,3494.0,3493.9,9.74958]
[1735829660116,1e-05,3494.0,3493.9,4.74958]
[1735829660320,1e-05,3494.0,3493.9,9.74958]
[1735829660517,1e-05,3494.0,3493.9,4.74958]
[1735829661116,1.2602,3495.5,3493.9,4.4631]
[1735829661416,1.2602,3495.5,3494.7,3.2078]
[1735829661612,1.2602,3495.5,3495.4,0.28636]
[1735829662013,1.2602,3495.5,3495.1,3.2078]
[1735829662417,3.2078,3495.2,3494.0,3.2078]
[1735829662621,0.28637,3495.2,3495.0,0.28638]
[1735829662817,0.28638,3495.2,3495.0,0.28639]
[1735829663325,3.2078,3495.3,3494.4,3.2078]
[1735829663815,3.2078,3495.3,3494.9,0.2864]
[1735829664017,3.2078,3495.3,3494.9,0.28639]
[1735829664217,1.2602,3495.5,3494.8,3.2078]
[1735829664523,1.2602,3495.5,3494.8,3.4942]
[1735829664817,11.03168381,3496.5,3495.3,3.2078]
[1735829665015,12.23568381,3496.5,3495.7,3.2078]
[1735829665211,4.69807,3496.5,3495.7,3.49413]
[1735829665417,4.69807,3496.5,3495.9,0.28631]
[1735829665614,4.69807,3496.5,3495.8,1.50112]
[1735829665615,0.28628,3496.4,3495.8,1.50112]
[1735829665812,4.69807,3496.5,3495.9,0.28632]
[1735829666018,4.69807,3496.5,3495.8,1.2148]
[1735829666019,6.70618612,3496.6,3496.1,3.2078]
[1735829666213,6.70618612,3496.6,3496.5,3.49407]
[1735829666917,1.2805,3498.0,3496.9,0.28623]
[1735829666918,0.28618,3497.6,3496.9,0.28623]
[1735829667112,0.28618,3497.6,3497.0,3.2078]
[1735829667318,0.28619,3497.5,3497.0,3.2078]
[1735829667515,6.70618612,3497.8,3497.2,0.28621]
[1735829667715,0.28619,3497.5,3497.1,0.28622]
[1735829667916,6.70618612,3497.8,3497.4,3.2078]
[1735829668225,6.70618612,3497.8,3497.4,3.49399]
[1735829668226,0.28617,3497.8,3497.4,3.49399]
[1735829668425,0.28615,3498.0,3497.5,0.28618]
[1735829668724,0.28615,3498.0,3497.4,3.2078]
[1735829668725,2.4845,3498.1,3497.4,3.2078]
[1735829669023,0.28615,3498.0,3497.4,3.49399]
[1735829669223,2.4845,3498.1,3497.4,3.2078]
[1735829669419,1.204,3498.1,3497.5,2.73209298]
[1735829669620,1.204,3498.1,3497.4,3.2078]
[1735829670416,4.11974113,3498.2,3497.4,3.2078]
[1735829670616,4.11974113,3498.2,3497.6,0.28618]
[1735829670815,0.91194113,3498.2,3497.8,3.2078]
[1735829671014,0.91194113,3498.2,3497.9,0.28615]
[1735829671220,0.91194113,3498.2,3498.1,0.28614]
[1735829672421,0.01024,3499.5,3498.1,10.93989298]
[1735829672621,0.01024,3499.5,3498.9,0.28607]
[1735829672622,0.29627,3499.5,3498.9,0.28607]
[1735829672816,0.28607,3499.0,3498.4,0.28611]
[1735829673127,3.2078,3498.9,3498.2,1.1915]
[1735829673423,0.28614,3498.1,3497.7,3.2078]
[1735829673622,3.2078,3498.1,3497.3,3.2078]
[1735829673833,0.28619,3497.5,3496.9,0.28623]
[1735829674020,3.2078,3497.6,3496.8,3.2078]
[1735829674324,3.49398,3497.6,3497.1,0.28622]
[1735829674625,3.49398,3497.6,3497.1,0.28621]
[1735829674815,3.49398,3497.6,3497.1,0.28622]
[1735829675017,3.49398,3497.6,3496.9,0.28623]
[1735829675223,3.49398,3497.6,3496.8,3.2078]
[1735829675420,3.2078,3497.6,3496.8,3.2078]
[1735829675615,0.28624,3496.9,3496.5,0.28627]
[1735829675816,0.28623,3497.0,3496.4,3.49407]
[1735829676022,3.2078,3497.1,3496.4,3.2078]
[1735829676222,0.28624,3496.8,3496.4,3.49407]
[1735829676725,0.28624,3496.8,3495.9,1.2823]
[1735829676726,0.28625,3496.7,3496.3,0.28628]
[1735829677028,3.2078,3497.5,3496.6,3.2078]
[1735829677216,0.28627,3496.6,3496.1,0.2863]
[1735829677525,2.4259,3497.4,3496.4,3.2078]
[1735829677728,0.28624,3496.9,3496.5,0.28626]
[1735829677913,3.2078,3497.1,3496.4,0.28627]
[1735829677914,0.28624,3496.8,3496.4,0.28627]
[1735829678114,3.2078,3497.1,3496.0,3.2078]
[1735829678316,0.28623,3497.0,3496.5,0.28626]
[1735829678519,3.2078,3497.1,3496.5,0.28626]
[1735829678716,0.28625,3496.8,3496.5,0.28626]
[1735829678916,0.28626,3496.7,3496.3,0.28628]
[1735829679122,3.2078,3497.1,3496.3,0.28628]
[1735829679317,3.2078,3497.1,3496.0,3.2078]
[1735829679519,0.28626,3496.7,3496.1,0.2863]
[1735829679725,0.28626,3496.7,3496.4,0.28627]
[1735829679928,0.28628,3496.4,3496.1,0.2863]
[1735829680220,0.2863,3496.1,3495.7,0.28633]
[1735829680421,2.5389,3496.3,3496.1,0.28629]
[1735829680628,2.5389,3496.3,3495.2,4.4661]
[1735829681021,0.28632,3495.9,3495.2,3.2078]
[1735829681230,0.28631,3496.1,3495.2,3.2078]
[1735829681419,2.5389,3496.3,3496.2,0.28629]
[1735829681624,1.242,3496.3,3496.2,0.28629]
[1735829682025,4.4498,3496.3,3495.5,3.2078]
[1735829682227,0.2863,3496.1,3495.9,0.28632]
[1735829682426,3.2078,3496.2,3496.1,0.2863]
[1735829682427,1.3062,3496.2,3496.1,0.2863]
[1735829682932,1.242,3496.3,3496.2,0.28629]
[1735829683926,1.742,3496.3,3496.2,0.28629]
[1735829684128,2.02828,3496.3,3495.8,3.2078]
[1735829684331,1.742,3496.3,3496.1,0.2863]
[1735829684519,2.02829,3496.3,3496.1,0.2863]
[1735829684723,1.742,3496.3,3495.8,3.2078]
[1735829684923,0.28633,3495.7,3495.5,0.28635]
[1735829685123,4.5057,3496.2,3495.4,3.2078]
[1735829685124,0.28635,3495.5,3495.4,3.2078]
[1735829685328,0.28633,3495.7,3495.0,3.49418]
[1735829685526,0.28635,3495.5,3495.3,0.28636]
[1735829685722,0.28633,3495.7,3495.0,3.2078]
[1735829685925,0.28631,3496.0,3495.8,0.28632]
[1735829686126,0.28631,3496.0,3495.1,0.71596]
[1735829686127,2.5109,3496.2,3495.4,3.2078]
[1735829686327,2.5109,3496.2,3496.1,0.2863]
[1735829686530,2.79719,3496.2,3496.0,0.2863]
[1735829686721,2.5109,3496.2,3496.1,0.2863]
[1735829687126,2.5109,3496.2,3496.0,0.2863]
[1735829687127,2.79719,3496.2,3496.0,0.2863]
[1735829687323,1.2979,3496.2,3496.1,0.2863]
[1735829687933,1.2979,3496.2,3496.0,0.2863]